Cogmind - Beta 15 @@@ ROGUE MODE // 2025.05.11 @ 16:29:55 Player: Darcyisverycute Result: Destroyed 0b10! Performance ------------- Evolutions (9) 4500 Regions Visited (13) 2600 Robots Destroyed (95) 475 Value Destroyed (3209) 3209 Prototype IDs (44) 880 Alien Tech Used (6) 1200 Bonus (11854) 11854 TOTAL SCORE: 24718 Bonus ------- Follower Combat Kills 54 Entered DSFs 500 Registered with UFD 300 Met Optimus in HQ 500 Scanned by Researcher 500 Met Sigix 2000 Escaped with Sigix 5000 Win 3000 Cogmind --------- Core Integrity 1450/1600 Matter 141/300 Energy 9/150 System Corruption 5% Temperature Hot (201) Movement Flying (12) Location Tau Ceti IV Orbit Parts ------- > --- POWER (3) -------- Micro Fission Core > --- PROPULSION (9) --- Xenon Bombardment Thruster Xenon Bombardment Thruster Advanced Surge Thruster Advanced Surge Thruster Advanced Surge Thruster Impulse Thruster Array Improved Q-thruster Cooled Q-thruster > --- UTILITY (10) ----- Advanced Power Amplifier Advanced Heat Sink Medium Storage Unit Spectral Analyzer Advanced Signal Interpreter Improved Transmission Jammer Concept RG22 Armor Improved Hacking Suite Concept Navigation Harness > --- WEAPON (3) ------- Vibroblade Centrium Greatsword > --- INVENTORY (10) --- Impulse Thruster Array Advanced Particle Charger Graphene Brace Thermal Barrier Enhanced Nova Cannon Enhanced Gamma Bomb Array Fusion Bomb Launcher Sigix Containment Pod Peak State ------------ > --- POWER ------------ Micro Fission Core Light Quantum Reactor > --- PROPULSION ------- Xenon Bombardment Thruster Xenon Bombardment Thruster Advanced Surge Thruster Advanced Surge Thruster Advanced Surge Thruster Impulse Thruster Array Improved Q-thruster Cooled Q-thruster > --- UTILITY ---------- Advanced Power Amplifier Advanced Heat Sink Medium Storage Unit Spectral Analyzer Advanced Signal Interpreter Improved Transmission Jammer Concept RG22 Armor Improved Hacking Suite Concept Navigation Harness > --- WEAPON ----------- Vibroblade Centrium Greatsword > --- INVENTORY -------- Impulse Thruster Array Advanced Particle Charger Graphene Brace Thermal Barrier Enhanced Nova Cannon Enhanced Gamma Bomb Array Fusion Bomb Launcher Sigix Containment Pod [Rating: 190] Favorites ----------- Power Ion Engine Engine Ion Engine Power Core Neutrino Core Reactor Light Quantum Reactor Propulsion Cargo Legs Treads Spiked Treads Leg Cargo Legs Hover Unit Combat Antigrav System Flight Unit Xenon Bombardment Thruster Utility Large Storage Unit Device Improved Terrain Scanner Storage Large Storage Unit Processor Advanced Signal Interpreter Hackware Hacking Suite Protection Light Armor Plating Weapon Companion Sword Energy Gun Small Laser Energy Cannon Nova Cannon Ballistic Gun Barrage Gun Ballistic Cannon Battle Cannon Launcher Fusion Bomb Launcher Special Weapon CPS Tube Impact Weapon Gravity Flail Slashing Weapon Companion Sword Build | -11 -10 -10 -7 -7 -5 -4 -4 -3 -3 -3 -2 -2 -1 ------- Run | Yrd Mat Sub Rec Scr Fac Fac DSF Res Qua Frg Res Tes Acc Slots Evolved 18 | . . . . . 10 2 . 2 . . 2 . 2 Power 2 | . . . . . 1 1 . . . . . . . Propulsion 7 | . . . . . 4 . . 2 . . 1 . . Utility 8 | . . . . . 5 1 . . . . . . 2 Weapon 1 | . . . . . . . . . . . 1 . . Parts Attached 162 | 6 4 9 1 4 38 . 12 11 16 9 9 18 25 Power 20 | . 2 1 . . 5 . 4 . . 1 2 1 4 Engine 9 | . 2 1 . . 1 . . . . 1 1 1 2 Core 9 | . . . . . 4 . 4 . . . . . 1 Reactor 2 | . . . . . . . . . . . 1 . 1 Propulsion 57 | 2 . 3 . . 13 . 6 5 9 1 2 6 10 Treads 5 | 2 . 2 . . 1 . . . . . . . . Leg 11 | . . 1 . . 10 . . . . . . . . Wheel . | . . . . . . . . . . . . . . Hover 17 | . . . . . 2 . 6 4 . . 1 4 . Flight 24 | . . . . . . . . 1 9 1 1 2 10 Utility 63 | 2 2 3 . 3 19 . 2 5 1 7 4 8 7 Device 32 | 1 . 1 . 2 10 . 1 3 . 3 2 4 5 Storage 5 | 1 1 . . 1 1 . . . . . . 1 . Processor 11 | . . . . . 4 . . 2 . 1 2 1 1 Hackware 5 | . . . . . 2 . . . 1 . . 1 1 Protection 10 | . 1 2 . . 2 . 1 . . 3 . 1 . Artifact . | . . . . . . . . . . . . . . Weapon 22 | 2 . 2 1 1 1 . . 1 6 . 1 3 4 Energy Gun 3 | 1 . . . . . . . 1 . . 1 . . Energy Cannon 3 | . . . . . . . . . 2 . . . 1 Ballistic Gun 4 | 1 . 1 1 . . . . . . . . 1 . Ballistic Cannon 1 | . . 1 . . . . . . . . . . . Launcher 4 | . . . . . 1 . . . 1 . . 1 1 Special Weapon 2 | . . . . . . . . . 2 . . . . Impact Weapon 1 | . . . . . . . . . . . . . 1 Slashing Weapon 4 | . . . . 1 . . . . 1 . . 1 1 Piercing Weapon . | . . . . . . . . . . . . . . Special Melee Weapon . | . . . . . . . . . . . . . . Unidentified Prototypes 33 | . . . . 1 3 . . 2 3 10 . 9 5 Parts Lost 63 | . . 1 1 . 23 . 2 3 8 9 5 1 10 Power 12 | . . 1 . . 3 . . . 2 2 . . 4 Propulsion 26 | . . . . . 12 . . 2 2 4 2 . 4 Utility 20 | . . . . . 8 . 2 1 2 2 3 . 2 Weapon 5 | . . . 1 . . . . . 2 1 . 1 . Highest Loss Streak 8 | . . 1 1 . 8 . 2 2 4 3 3 1 6 To Critical Strikes . | . . . . . . . . . . . . . . Average Backups 12 | 3 11 14 13 14 17 16 13 13 12 10 2 6 7 Power 1 | 1 2 1 1 1 1 . . . . . . . . Propulsion 1 | 1 2 1 1 3 2 . 1 7 1 . . . . Utility 6 | . 5 7 8 8 10 12 7 2 2 4 . 2 3 Weapon 2 | . 1 3 3 . 1 2 1 1 2 1 1 2 3 Tool/Special . | . . . . . . . . . . . . . . Unused Backups 46 | 1 3 4 . 11 4 . 2 1 5 5 4 1 5 Power 3 | . . . . 1 2 . . . . . . . . Propulsion 13 | 1 3 3 . 1 1 . . 1 . . 1 . 2 Utility 21 | . . . . 6 1 . 2 . 2 4 3 1 2 Weapon 6 | . . 1 . 3 . . . . 1 . . . 1 Tool/Special 3 | . . . . . . . . . 2 1 . . . Average Slot Usage (%) 79 | . 99 89 73 70 78 52 73 84 84 64 57 57 73 Engine 8 | . 13 12 11 11 5 . . . . 1 3 3 1 Core 1 | . . . . . 5 5 8 14 7 2 . . . Treads 7 | . 28 16 . . . . . . . . . . . Leg 6 | . . 4 11 11 23 . . . . . . . . Hover 1 | . . . . . . 5 22 28 . . 1 6 5 Flight 5 | . . . . . . . . . 34 26 15 12 22 Device 11 | . 8 3 11 20 17 10 8 10 14 9 8 7 11 Storage 8 | . 14 12 11 11 5 5 5 4 4 3 . 3 4 Processor 4 | . . . . . 6 10 10 12 14 13 12 9 8 Hackware 1 | . . . . . 4 5 5 4 1 . . 2 6 Protection 5 | . 5 12 11 3 . 5 6 3 . 2 4 4 4 Energy Gun 1 | . 14 1 . . . . . . . . 3 . . Ballistic Gun 5 | . 14 12 13 . . . . . . . . . . Ballistic Cannon 3 | . . 10 4 . . . . . . . . . . Slashing Weapon 3 | . . . . 10 5 5 5 4 2 1 . 3 5 Peak Build Rating 190 | 6 8 32 32 38 87 51 96 120 137 135 153 163 190 Average Rating 59 | 4 7 19 30 35 75 51 78 114 122 112 133 134 172 On Entrance 65 | . 6 8 32 27 38 51 51 93 105 127 90 121 163 Naked Turns . | . . . . . . . . . . . . . . Heaviest Build 77 | 9 31 50 50 51 77 65 67 69 61 54 46 39 52 Greatest Support 136 | 40 40 55 55 55 136 11 69 95 80 54 46 42 71 Greatest Overweight (x) 14 | . . 1 . . 5 5 4 . 14 2 3 2 1 Average Overweight (x) . | . . . . . . 5 . . . . . . . Largest Inventory Capacity 20 | 8 15 15 15 20 20 20 15 15 15 15 5 10 10 Average Capacity 14 | 7 12 15 15 16 20 20 15 15 15 13 5 8 10 Most Carried 20 | 7 15 15 15 20 20 17 15 15 15 15 5 10 10 Average Carried 13 | 4 11 14 14 16 18 17 14 14 14 13 4 8 9 Final Capacity 20 | 8 15 15 15 20 20 20 15 15 15 5 5 10 10 Final Carried 20 | 7 15 13 15 20 17 17 15 15 14 5 5 10 10 Class Distribution -------------------- 56% | Mutant 18% | Derelict-Mutant 6% | Scavenger-Mutant 5% | Sprinter Dominant Class ---------------- Mutant | -10/Materials Mutant | -10/Subcaves Mutant | -7/Recycling Mutant | -7/Scraptown Derelict-Mutant | -5/Factory Derelict-Mutant | -4/Factory Sprinter | -4/DSF Mutant | -3/Research Scavenger-Assassin | -3/Quarantine Scavenger-Scout | -3/Protoforge Sprinter | -2/Research Mutant | -2/Testing Scavenger-Sprinter | -1/Access Resources | -11 -10 -10 -7 -7 -5 -4 -4 -3 -3 -3 -2 -2 -1 ----------- Run | Yrd Mat Sub Rec Scr Fac Fac DSF Res Qua Frg Res Tes Acc Matter Collected 4029 | 278 187 913 67 201 684 . 7 320 305 25 436 159 447 Remotely . | . . . . . . . . . . . . . . Salvage Created 4494 | 186 527 541 60 . 1399 . . 419 233 25 301 247 556 Parts 252 | 10 31 47 1 . 73 . . 23 6 3 17 8 33 Haulers Intercepted 2 | . . . . . 2 . . . . . . . . Recyclers Shooed 4 | . 1 . . . 1 . . . . . 1 1 . Parts Field Recycled . | . . . . . . . . . . . . . . Retrieved Matter . | . . . . . . . . . . . . . . Parts Self-Destructed 24 | . . 24 . . . . . . . . . . . Prevented . | . . . . . . . . . . . . . . Kills | -11 -10 -10 -7 -7 -5 -4 -4 -3 -3 -3 -2 -2 -1 ------- Run | Yrd Mat Sub Rec Scr Fac Fac DSF Res Qua Frg Res Tes Acc Combat Hostiles Destroyed 62 | . 13 13 1 . 19 . . 7 . . . . 9 Melee 29 | . . . . . 18 . . 7 . . . . 4 Guns 20 | . 13 7 . . . . . . . . . . . Cannons 7 | . . 6 1 . . . . . . . . . . AOE 6 | . . . . . 1 . . . . . . . 5 Classes Destroyed 16 | 3 2 2 1 . 6 . . 1 . . . . 1 Worker 11 | 1 . . . . 1 . . 1 . 2 3 . 3 Builder 2 | . . . . . . . . 1 . . 1 . . Tunneler 4 | 3 1 . . . . . . . . . . . . Hauler 2 | . . . . . 2 . . . . . . . . Recycler 10 | 1 1 . . . . . . 1 2 . 2 1 2 Operator 1 | . . . . . 1 . . . . . . . . Turret 2 | . . 2 . . . . . . . . . . . Watcher 1 | . . . . . 1 . . . . . . . . Swarmer 21 | . 3 4 . . 3 . . 7 . . . . 4 Cutter 2 | . . . . . . . . . . . . . 2 Grunt 15 | . 10 . . . 5 . . . . . . . . Brawler 1 | . . . . . 1 . . . . . . . . Sentry 3 | . . . 1 . 2 . . . . . . . . Hunter 4 | . . . . . 4 . . . . . . . . Programmer 7 | . . . . . 4 . . . . . . . 3 Subdweller 9 | . . 9 . . . . . . . . . . . Best Kill Streak 6 | 3 4 6 1 . 6 . . 3 2 1 2 1 4 Combat Bots Only 6 | . 4 4 1 . 6 . . 3 . . . . 4 Max Kills in Single Turn 3 | 1 2 1 1 . 1 . . 1 1 1 1 1 3 Gunslinging . | . . . . . . . . . . . . . . Exploded 3 | . . . . . 1 . . . . . . . 3 Melee 1 | . . . . . 1 . . 1 . . . . 1 Uniques/NPCs Destroyed . | . . . . . . . . . . . . . . Combat | -11 -10 -10 -7 -7 -5 -4 -4 -3 -3 -3 -2 -2 -1 -------- Run | Yrd Mat Sub Rec Scr Fac Fac DSF Res Qua Frg Res Tes Acc Hostile Shots Fired 906 | . 48 89 33 . 232 . 13 46 16 131 106 75 117 Missed 353 | . 14 37 10 . 64 . 4 15 9 54 55 31 60 Hits 553 | . 34 52 23 . 168 . 9 31 7 77 51 44 57 Melee 19 | . . . . . . . . 1 . . 9 . 9 Projectile 534 | . 34 52 23 . 168 . 9 30 7 77 42 44 48 AOE 5 | . . . . . 1 . . . . . 3 . 1 Critical Strikes 35 | . 2 . . . 6 . 1 2 1 7 6 1 9 Actively Blocked 11 | . . . . . . . . . . . 6 . 5 Damage Taken 12927 | . 359 724 142 . 3922 . 410 797 697 1845 1408 1033 1590 Core 1989 | . 47 13 17 . 641 . 62 84 38 385 376 176 150 Absorbed by Shields 309 | . . . . . . . 141 28 . 140 . . . Ignored by Resistances 211 | . . . . . 45 . . . . 81 32 9 44 Regen/Repaired (Parts) 1759 | . . . . 23 10 . . . 146 700 391 187 302 Core Remaining (%) 69 | 100 . . . 69 35 . 94 . . 42 . 55 90 Volleys Fired 224 | 6 40 94 8 . . . . . 5 16 40 3 12 Largest 2 | 2 2 2 2 . . . . . 1 1 2 1 1 Hottest 178 | 60 60 61 61 . . . . . 113 113 178 113 120 Shots Fired 339 | 12 81 154 16 . . . . . 5 15 41 3 12 Gun 183 | 12 81 75 8 . . . . . . . 7 . . Cannon 146 | . . 79 8 . . . . . 5 15 34 3 2 Launcher 10 | . . . . . . . . . . . . . 10 Special . | . . . . . . . . . . . . . . Kinetic 200 | 6 40 138 16 . . . . . . . . . . Thermal 129 | 6 41 16 . . . . . . 5 15 41 3 2 Explosive 10 | . . . . . . . . . . . . . 10 Electromagnetic . | . . . . . . . . . . . . . . Robot Hit Streak 23 | 4 15 23 4 . . . . . . 3 5 3 10 Robot Miss Streak 2 | 1 2 2 2 . . . . . . . 2 . 1 Penetration Max . | . . . . . . . . . . . . . . Secondary Targets . | . . . . . . . . . . . . . . Shots Hit Robots 297 | 8 57 86 10 . 78 . . 13 2 5 11 9 18 Core Hits 136 | 6 26 33 4 . 31 . . 8 2 1 7 3 15 Critical Kills 1 | . 1 . . . . . . . . . . . . Critical Parts Destroyed . | . . . . . . . . . . . . . . Critical Strikes 6 | . 1 2 . . 2 . . . . . . 1 . Destroy 1 | . 1 . . . . . . . . . . . . Blast 2 | . . 2 . . . . . . . . . . . Sever 1 | . . . . . . . . . . . . 1 . Melee Attacks 240 | . . . . . 117 . . 39 15 17 . 7 45 Impact 1 | . . . . . . . . . . . . . 1 Slashing 239 | . . . . . 117 . . 39 15 17 . 7 44 Piercing . | . . . . . . . . . . . . . . Sneak Attacks 17 | . . . . . 5 . . 3 2 2 . . 5 Combat Hostiles . | . . . . . . . . . . . . . . Follow-up Attacks 3 | . . . . . 2 . . . . . . . 1 Damage Inflicted 9987 | 88 698 1399 172 . 3165 . . 672 303 468 436 717 1869 Guns 1773 | 88 698 823 72 . . . . . . . 92 . . Cannons 1204 | . . 576 100 . . . . . . 81 328 119 . Explosions 941 | . . . . . . . . . . . . . 941 Melee 5988 | . . . . . 3165 . . 672 303 322 . 598 928 Ramming 81 | . . . . . . . . . . 65 16 . . Kinetic 1837 | 44 387 1234 172 . . . . . . . . . . Thermal 1140 | 44 311 165 . . . . . . . 81 420 119 . Explosive 941 | . . . . . . . . . . . . . 941 Electromagnetic . | . . . . . . . . . . . . . . Impact . | . . . . . . . . . . . . . . Slashing 5988 | . . . . . 3165 . . 672 303 322 . 598 928 Piercing . | . . . . . . . . . . . . . . Highest Corruption 25 | . 3 3 3 3 5 . . . 14 25 . . 5 Average Corruption 4 | . 2 3 3 3 3 . . . 11 17 . . 3 Corruption Purged . | . . . . . . . . . . . . . . Corruption Blocked . | . . . . . . . . . . . . . . Effects 179 | . 3 51 5 43 13 . . . 18 39 . . 7 Message Errors 42 | . . 14 1 9 2 . . . 4 9 . . 3 Matter Fused 58 | . 1 15 2 11 8 . . . 6 15 . . . Heat Flow Errors 16 | . . 4 . 4 2 . . . 2 2 . . 2 Energy Discharges 18 | . 1 1 1 8 . . . . 4 3 . . . Parts Rejected 2 | . . 1 . . . . . . . . . . 1 Parts Fused 1 | . . . . 1 . . . . . . . . . Data Loss (minor) 22 | . . 10 . 8 1 . . . 1 2 . . . Data Loss (major) 3 | . . 1 . 1 . . . . . 1 . . . Misfires 5 | . 1 3 . . . . . . . 1 . . . Alerts 4 | . . 1 1 1 . . . . . . . . 1 Misdirections 5 | . . . . . . . . . 1 4 . . . Weapon Failures 3 | . . 1 . . . . . . . 2 . . . Overload Shots . | . . . . . . . . . . . . . . Overflow Damage 836 | . . . . . 114 . . 79 . 140 11 45 447 Projectiles 24 | . . . . . . . . . . 2 11 11 . Explosions 94 | . . . . . . . . . . . . . 94 Melee 718 | . . . . . 114 . . 79 . 138 . 34 353 Knockbacks 4 | . . 4 . . . . . . . . . . . Impact . | . . . . . . . . . . . . . . Kinetic 3 | . . 3 . . . . . . . . . . . Secondary 1 | . . 1 . . . . . . . . . . . Self-Inflicted Damage 152 | . . . . . . . . . . 51 8 . 93 Shots 1 | . . . . . . . . . . . . . 1 Rammed 5 | . . . . . . . . . . 3 2 . . Targets Rammed 5 | . . . . . . . . . . 3 2 . . Kicked . | . . . . . . . . . . . . . . Crushed . | . . . . . . . . . . . . . . Highest Temperature 588 | . 75 230 20 271 407 . 18 256 208 588 277 358 253 Average Temperature 70 | . 22 93 15 118 140 . 12 46 61 193 77 121 64 Received Heat Transfer 1488 | . 162 180 12 . 192 . . 37 . 824 36 . 45 Effects 3 | . . . . . 1 . . . . 2 . . . Energy Bleed 1 | . . . . . . . . . . 1 . . . Short Circuit 1 | . . . . . 1 . . . . . . . . Damage (major) 1 | . . . . . . . . . . 1 . . . Siege Activations . | . . . . . . . . . . . . . . Martial Activations . | . . . . . . . . . . . . . . Shielding Activations . | . . . . . . . . . . . . . . Robots Disrupted . | . . . . . . . . . . . . . . Combat Hostiles . | . . . . . . . . . . . . . . Robots Corrupted . | . . . . . . . . . . . . . . Combat Hostiles . | . . . . . . . . . . . . . . Parts Fried . | . . . . . . . . . . . . . . Impact Corruptions . | . . . . . . . . . . . . . . Robots Melted . | . . . . . . . . . . . . . . Combat Hostiles . | . . . . . . . . . . . . . . Parts Melted 1 | . 1 . . . . . . . . . . . . Heat Transferred 1767 | 100 700 375 . . . . . . . 74 407 111 . Parts Sabotaged . | . . . . . . . . . . . . . . Parts Stolen . | . . . . . . . . . . . . . . Parts Stripped . | . . . . . . . . . . . . . . Power Chain Reactions . | . . . . . . . . . . . . . . Alert | -11 -10 -10 -7 -7 -5 -4 -4 -3 -3 -3 -2 -2 -1 ------- Run | Yrd Mat Sub Rec Scr Fac Fac DSF Res Qua Frg Res Tes Acc Maximum Alert Level 2 | . 1 . . . . . . . 1 . . . 2 Low Security (%) 92 | 100 87 . 100 . 100 100 100 100 96 100 100 100 57 Level 1 6 | . 12 . . . . . . . 3 . . . 39 Level 2 . | . . . . . . . . . . . . . 2 Level 3 . | . . . . . . . . . . . . . . Level 4 . | . . . . . . . . . . . . . . Level 5 . | . . . . . . . . . . . . . . High Security . | . . . . . . . . . . . . . . Max Security . | . . . . . . . . . . . . . . Peak Influence 427 | 15 231 . 82 . 123 . . 189 202 130 64 33 427 Initial 104 | . . . 72 . . . . . 97 104 23 11 . Average 70 | 2 74 . 38 . 63 . . 68 89 52 26 13 175 Influence Increases 3416 | 25 350 195 20 . 566 . . 412 411 299 261 113 764 Destroy 0b10 Robot/C 1140 | . 260 120 20 . 380 . . 140 . . . 40 180 Destroy 0b10 Robot/NC 160 | 25 10 . . . 25 . . 15 10 10 30 10 25 Destroy Leader 196 | . 50 . . . 96 . . 20 . . . . 30 Allied During Kill 6 | . . . . . . . . . . . . 6 . Successful Hack 101 | . . . . . 6 . . 5 . 14 . . 76 Disable Machine 165 | . . . . . . . . 15 60 60 15 15 . Anti-Garrison Action 150 | . . . . . . . . . 150 . . . . Destroy Structure 343 | . . . . . 14 . . 22 26 20 66 12 183 Partial Spotted 435 | . . . . . . . . 30 15 45 135 30 180 Lose Combat Pursuer 720 | . 30 75 . . 45 . . 165 150 150 15 . 90 Influence Decreases 3007 | 25 218 177 170 . 566 . . 238 399 443 283 133 355 Entered New Map 329 | . . 64 78 . . . . . 77 82 19 9 . Time Decay 1974 | 25 218 103 82 . 338 . . 125 232 278 214 94 265 Lost Part 564 | . . 10 10 . 201 . . 30 80 83 50 10 90 Lost Ally 32 | . . . . . 2 . . . 10 . . 20 . Purge Threat 108 | . . . . . 25 . . 83 . . . . . Squads Dispatched 46 | . 3 . . . 8 1 . 2 6 4 10 4 8 Investigation 10 | . 2 . . . 4 1 . 1 1 . . . 1 Extermination 16 | . . . . . 2 . . 1 1 2 5 1 4 Reinforcement 18 | . 1 . . . 2 . . . 2 2 5 3 3 Assault 2 | . . . . . . . . . 2 . . . . Garrison . | . . . . . . . . . . . . . . Intercept . | . . . . . . . . . . . . . . Searches Triggered . | . . . . . . . . . . . . . . Construction Impeded . | . . . . . . . . . . . . . . Haulers Reinforced . | . . . . . . . . . . . . . . Active Scanning Responses . | . . . . . . . . . . . . . . Cargo Convoy Interrupts 1 | . . . . . 1 . . . . . . . . Stealth | -11 -10 -10 -7 -7 -5 -4 -4 -3 -3 -3 -2 -2 -1 --------- Run | Yrd Mat Sub Rec Scr Fac Fac DSF Res Qua Frg Res Tes Acc Distress Signals 8 | . . . . . 3 . . . 1 1 1 1 1 Communications Jammed 9 | . . . . . . . . . . . . . 9 Distress Signals 9 | . . . . . . . . . . . . . 9 Times Spotted 295 | . 23 20 1 . 38 . 2 20 21 43 49 23 55 Peak Tracking Total 13 | . 3 4 1 . 11 . 2 7 12 8 9 13 11 Tactical Retreats 24 | . 2 4 . . 2 . . 6 3 5 1 . 1 Traps | -11 -10 -10 -7 -7 -5 -4 -4 -3 -3 -3 -2 -2 -1 ------- Run | Yrd Mat Sub Rec Scr Fac Fac DSF Res Qua Frg Res Tes Acc Traps Triggered 18 | . 4 1 . . 1 . 2 1 2 5 1 . 1 Indirectly . | . . . . . . . . . . . . . . Trap Hack Attempts . | . . . . . . . . . . . . . . Triggered . | . . . . . . . . . . . . . . Disarmed . | . . . . . . . . . . . . . . Reprogrammed . | . . . . . . . . . . . . . . Reused . | . . . . . . . . . . . . . . Traps Extracted . | . . . . . . . . . . . . . . Installed 1 | . . 1 . . . . . . . . . . . Triggered . | . . . . . . . . . . . . . . Machines | -11 -10 -10 -7 -7 -5 -4 -4 -3 -3 -3 -2 -2 -1 ---------- Run | Yrd Mat Sub Rec Scr Fac Fac DSF Res Qua Frg Res Tes Acc Machines Disabled 20 | . . 3 . . . . . 1 5 9 1 1 . Max in Single Turn 1 | . . 1 . . . . . 1 1 1 1 1 . Garrison Access 3 | . . . . . . . . 1 1 . . 1 . Machines Repaired . | . . . . . . . . . . . . . . Machines Dismantled 2 | . . . . . . . . . 2 . . . . Machines Sabotaged . | . . . . . . . . . . . . . . Overloaded Fab Kills . | . . . . . . . . . . . . . . Hacking | -11 -10 -10 -7 -7 -5 -4 -4 -3 -3 -3 -2 -2 -1 --------- Run | Yrd Mat Sub Rec Scr Fac Fac DSF Res Qua Frg Res Tes Acc Machines Accessed 48 | . 4 1 1 3 6 1 . 6 10 4 1 2 9 Terminals 35 | . 3 . 1 . 4 1 . 4 9 4 1 1 7 Fabricators . | . . . . . . . . . . . . . . Repair Stations . | . . . . . . . . . . . . . . Recycling Units 5 | . 1 . . . 2 . . 1 . . . . 1 Scanalyzers . | . . . . . . . . . . . . . . Garrison Access 4 | . . . . . . . . 1 1 . . 1 1 Total Hacks 80 | . 7 1 2 4 13 3 . 8 18 5 2 2 15 Successful 38 | . 2 1 2 4 5 1 . 5 7 4 . 1 6 Failed 42 | . 5 . . . 8 2 . 3 11 1 2 1 9 Catastrophic 12 | . 2 . . . 2 . . 1 2 . . 1 4 Database Lockouts . | . . . . . . . . . . . . . . Manual 25 | . 5 . . . 10 . . 3 5 1 . . 1 Terminals 65 | . 6 . 2 . 11 3 . 6 17 5 2 1 12 Fabricators . | . . . . . . . . . . . . . . Repair Stations . | . . . . . . . . . . . . . . Recycling Units 6 | . 1 . . . 2 . . 1 . . . . 2 Scanalyzers . | . . . . . . . . . . . . . . Garrison Access 4 | . . . . . . . . 1 1 . . 1 1 Terminal Hacks 27 | . 1 1 2 4 2 1 . 2 6 3 . . 5 Record 11 | . . . . 2 . . . . 5 3 . . 1 Robot Analysis 1 | . 1 . . . . . . . . . . . . Open Door 4 | . . . . 1 . . . 1 1 . . . 1 Open DSF 1 | . . . . . . 1 . . . . . . . Level Access Points 1 | . . . . . . . . . . . . . 1 Terminal Index 1 | . . . . . . . . . . . . . 1 Alert Level 2 | . . . 2 . . . . . . . . . . Unreport Threat 2 | . . . . . 1 . . 1 . . . . . Locate Traps 1 | . . . . . . . . . . . . . 1 Surveillance Status 1 | . . . . . 1 . . . . . . . . Proto ID Catalog 2 | . . 1 . 1 . . . . . . . . . Fabricator Hacks . | . . . . . . . . . . . . . . Repair Station Hacks . | . . . . . . . . . . . . . . Recycling Unit Hacks 2 | . 1 . . . . . . . . . . . 1 Retrieve Components 2 | . 1 . . . . . . . . . . . 1 Scanalyzer . | . . . . . . . . . . . . . . Garrison Access Hacks 2 | . . . . . . . . 1 . . . 1 . Seal Access 2 | . . . . . . . . 1 . . . 1 . Unauthorized Hacks 7 | . . . . . 3 . . 2 1 1 . . . Terminals 4 | . . . . . 1 . . 1 1 1 . . . Assimilate 1 | . . . . . . . . . 1 . . . . Botnet 3 | . . . . . 1 . . 1 . 1 . . . Fabricators . | . . . . . . . . . . . . . . Repair Stations . | . . . . . . . . . . . . . . Recycling Units 3 | . . . . . 2 . . 1 . . . . . Fedlink 3 | . . . . . 2 . . 1 . . . . . Scanalyzers . | . . . . . . . . . . . . . . Garrison Access . | . . . . . . . . . . . . . . Data Cores Recovered 1 | . . . . . 1 . . . . . . . . Used . | . . . . . . . . . . . . . . Hacking Detections 35 | . 3 . 1 . 4 1 . 4 9 3 1 1 8 Full Trace Events 3 | . . . . . 1 1 . . . . . . 1 Feedback Events 1 | . . . . . 1 . . . . . . . . Hackware Fried 1 | . . . . . 1 . . . . . . . . Feedback Blocked . | . . . . . . . . . . . . . . Robot Schematics Acquired . | . . . . . . . . . . . . . . Robots Built . | . . . . . . . . . . . . . . Authchips . | . . . . . . . . . . . . . . Time . | . . . . . . . . . . . . . . Total Robot Build Rating . | . . . . . . . . . . . . . . Part Schematics Acquired . | . . . . . . . . . . . . . . Parts Built . | . . . . . . . . . . . . . . Authchips . | . . . . . . . . . . . . . . Time . | . . . . . . . . . . . . . . Total Part Build Rating . | . . . . . . . . . . . . . . Parts Repaired . | . . . . . . . . . . . . . . Time . | . . . . . . . . . . . . . . Parts Recycled . | . . . . . . . . . . . . . . Recycled Matter . | . . . . . . . . . . . . . . Retrieved Matter . | . . . . . . . . . . . . . . Retrieved Components 5 | . 5 . . . . . . . . . . . . Parts Scanalyzed . | . . . . . . . . . . . . . . Part Schematics Acquired . | . . . . . . . . . . . . . . Parts Damaged . | . . . . . . . . . . . . . . Bothacking | -11 -10 -10 -7 -7 -5 -4 -4 -3 -3 -3 -2 -2 -1 ------------ Run | Yrd Mat Sub Rec Scr Fac Fac DSF Res Qua Frg Res Tes Acc Used RIF Installer . | . . . . . . . . . . . . . . Robots Hacked . | . . . . . . . . . . . . . . Non-combat . | . . . . . . . . . . . . . . Combat . | . . . . . . . . . . . . . . Robot Hacks Applied . | . . . . . . . . . . . . . . Relay Couplers Released 2 | . . . . . . . . . 2 . . . . Machine Destruction 2 | . . . . . . . . . 2 . . . . Fabnet Peak Effective % . | . . . . . . . . . . . . . . Robots Rewired 1 | . . . . . . . . . . . . 1 . Allies Hacked . | . . . . . . . . . . . . . . Hacks Repelled . | . . . . . . . . . . . . . . Allies | -11 -10 -10 -7 -7 -5 -4 -4 -3 -3 -3 -2 -2 -1 -------- Run | Yrd Mat Sub Rec Scr Fac Fac DSF Res Qua Frg Res Tes Acc Total Allies 2 | . . . . . . . . . 1 . . 1 . Largest Group 1 | . . . . . . . . . 1 . . 1 . Highest-Rated Group 161 | . . . . . . . . . 10 . . 161 . Highest-Rated Ally 161 | . . . . . . . . . 10 . . 161 . Total Orders 2 | . . . . . 1 . . . 1 . . . . STAY 1 | . . . . . . . . . 1 . . . . EXPLORE 1 | . . . . . 1 . . . . . . . . Ally Attacks 6 | . . . . . . . . . . . . 6 . Total Damage 790 | . . . . . . . . . . . . 790 . Kills 2 | . . . . . . . . . . . . 2 . Allies Corrupted . | . . . . . . . . . . . . . . Allies Melted . | . . . . . . . . . . . . . . Intel | -11 -10 -10 -7 -7 -5 -4 -4 -3 -3 -3 -2 -2 -1 ------- Run | Yrd Mat Sub Rec Scr Fac Fac DSF Res Qua Frg Res Tes Acc Active Infowar (turns) 6504 | 21 605 800 190 2201 459 . . 322 454 400 311 121 620 Optics 655 | . . . . . . . . . . . . 35 620 Sensors 1314 | . . . . . . . . 87 454 400 273 . 100 Terrain 4562 | . . 800 190 2201 459 . . 322 315 237 38 . . Seismic 712 | 21 605 . . . . . . . . . . 86 . Jamming 254 | . . . . 174 3 . . . . . . . 77 Robot Analysis Total 1 | . 1 . . . . . . . . . . . . Derelict Logs Recovered 2 | . . 2 . . . . . . . . . . . Drone Launches 3 | . . . . . 3 . . . . . . . . Drone Recoveries . | . . . . . . . . . . . . . . Exploration | -11 -10 -10 -7 -7 -5 -4 -4 -3 -3 -3 -2 -2 -1 ------------- Run | Yrd Mat Sub Rec Scr Fac Fac DSF Res Qua Frg Res Tes Acc Turns Passed 10514 | 140 952 2881 190 2201 1183 4 78 350 529 646 499 241 620 Spaces Moved 9196 | 68 380 1609 122 1665 667 2 50 498 820 866 1068 407 974 Core 8 | 6 . . . . . . . . 2 . . . . Treads 1376 | 62 380 934 . . . . . . . . . . . Legs 3126 | . . 675 122 1665 664 . . . . . . . . Wheels . | . . . . . . . . . . . . . . Hover 578 | . . . . . 3 2 50 498 5 . 3 17 . Flight 4108 | . . . . . . . . . 813 866 1065 390 974 Fastest Speed 6 | 50 160 130 130 130 115 360 28 34 16 17 28 31 6 Average Speed 85 | 150 160 147 130 130 132 360 63 44 25 30 32 41 33 Slowest Speed 750 | 160 160 260 130 130 360 360 300 53 750 184 240 180 125 Overloaded Moves 287 | . . . . . . . . . 33 121 59 6 68 Propulsion Burnouts . | . . . . . . . . . . . . . . Robots Hopped 21 | . . . . . . . . . 1 2 7 6 5 Potential Cave-ins 12 | . . . . . . . . . . 12 . . . Cave-ins Triggered 1 | . . . . . . . . . 1 . . . . Teleports 71 | . . . . . . . . . 1 8 28 9 25 Exploration Rate (%) 41 | 6 50 86 26 84 25 1 40 18 72 28 38 63 40 Regions Visited 13 Branch Regions 6 Pre-discovered Areas 3 | . . 2 . . 1 . . . . . . . . Known Exits Taken 6 | . . . . . . 1 . 1 1 1 1 1 . Unknown Exits Taken 6 | 1 1 1 1 1 1 . . . . . . . . Scrap Searched 12 | . . 6 . 6 . . . . . . . . . Spaces Dug 97 | . . . . . 7 . . 11 13 13 23 . 30 Terrain Destroyed 143 | . . . . . 7 . . 11 14 14 25 . 72 Melee 55 | . . . . . 7 . . 11 10 6 . . 21 Projectile 39 | . . . . . . . . . 4 8 25 . 2 AOE 49 | . . . . . . . . . . . . . 49 Terrain Rammed 1 | . . . . . . . . . . 1 . . . Walls Destroyed 1 | . . . . . . . . . . 1 . . . Machines Disabled . | . . . . . . . . . . . . . . Actions | -11 -10 -10 -7 -7 -5 -4 -4 -3 -3 -3 -2 -2 -1 --------- Run | Yrd Mat Sub Rec Scr Fac Fac DSF Res Qua Frg Res Tes Acc Total 11202 | 91 649 1967 139 1707 880 1 92 590 1089 1200 1172 456 1169 Wait 962 | 3 202 227 1 7 18 . . 8 164 208 39 2 83 Move 9141 | 67 379 1608 121 1664 666 1 49 497 817 861 1053 394 964 Hop 20 | . . . . . . . . . 1 2 7 6 4 Pick Up 142 | 8 16 6 3 18 20 . 4 12 20 11 9 5 10 Fast Attach 106 | 6 . 8 1 1 16 . 9 4 4 8 10 19 20 Attach 81 | . 1 3 1 1 19 . 1 5 22 15 5 1 7 Detach 46 | . . 1 1 . 6 . . 5 11 13 . 6 3 Swap 42 | . 3 1 . 2 8 . 3 8 1 . 1 1 14 Drop 129 | 1 8 14 3 14 12 . 7 12 16 13 6 11 12 Fire 224 | 6 40 94 8 . . . . . 5 16 40 3 12 Melee 233 | . . . . . 115 . . 39 15 17 . 7 40 Ram 6 | . . . . . . . . . . 4 2 . . Kick . | . . . . . . . . . . . . . . Crush . | . . . . . . . . . . . . . . Escape Stasis 51 | . . . . . . . 19 . . 32 . . . Rewire 1 | . . . . . . . . . . . . 1 . Trap 1 | . . 1 . . . . . . . . . . . Miscellaneous 17 | . . 4 . . . . . . 13 . . . . Route ------- -11/Scrapyard -10/Materials (discovered 3 exits: [*Mat] / [*Min] / *Sub) -10/Subcaves (discovered 3 exits: [*Mat x2] / *Rec) -7/Recycling -7/Scraptown (discovered 2 exits: *Fac x2) -5/Factory (discovered 2 exits: *Fac x2) -4/Factory -4/DSF -3/Research -3/Quarantine (discovered 2 exits: *Sec / *Frg) -3/Protoforge -2/Research -2/Testing -1/Access Tau Ceti IV Orbit History --------- Turn | Location | Event 2 | -11/Scrapyard | Met Revision 17 8 | -11/Scrapyard | Discovered new exit (range 15) 141 | -11/Scrapyard | Entered Materials 313 | -10/Materials | Build established: Mutant 790 | -10/Materials | Discovered new exit (range 11) 1025 | -10/Materials | Discovered new exit (range 15) 1079 | -10/Materials | Discovered new exit (range 10) 1093 | -10/Materials | Entered Subcaves 1793 | -10/Subcaves | Build established: Derelict-Mutant 1856 | -10/Subcaves | A swath of the cavern ceiling suddenly collapsed 1992 | -10/Subcaves | Shifting Twisted Machinery released Sub. Beam Cannon 2014 | -10/Subcaves | Shifting Twisted Machinery released Mak. Leg 2084 | -10/Subcaves | A swath of the cavern ceiling suddenly collapsed 2424 | -10/Subcaves | Shifting Twisted Machinery released Sub. Optics 2431 | -10/Subcaves | Shifting Twisted Machinery released Sub. Beam Cannon 2449 | -10/Subcaves | Discovered new exit (range 5) 2620 | -10/Subcaves | Discovered new exit (range 5) 2759 | -10/Subcaves | Learned location of 1 exit from Materials 2790 | -10/Subcaves | Visited 4L-MR0's lab 2814 | -10/Subcaves | Found Cargo Legs 2815 | -10/Subcaves | Attached Cargo Legs, gained temporary slots: Utility x2 3101 | -10/Subcaves | Build established: Mutant 3136 | -10/Subcaves | Learned location of Zion (-6) 3136 | -10/Subcaves | Met a Zionite searching for "candidates" 3532 | -10/Subcaves | Shifting Twisted Machinery released Scrap Shield 3635 | -10/Subcaves | Discovered new exit (range 16) 3974 | -10/Subcaves | Entered Recycling 4132 | -7/Recycling | Scanned before Scraplab entrance 4151 | -7/Recycling | Entered Scraplab 4161 | -7/Recycling | Discovered new exit (range 2) 4164 | -7/Recycling | Entered Scraptown 4235 | -7/Scraptown | Visited IN-MT5's Study 4262 | -7/Scraptown | Visited Shadow of the Wyrm 4284 | -7/Scraptown | Visited UFD Registry 4284 | -7/Scraptown | Registered with UFD as "Cargoshell" 4385 | -7/Scraptown | Visited Research Penetration Think Tank 4452 | -7/Scraptown | Visited Sword Containment 4500 | -7/Scraptown | Visited DA-N13 Charitable Foundation 4509 | -7/Scraptown | Found DCF Scrap (29 items) 4544 | -7/Scraptown | Visited Cartography Club 4585 | -7/Scraptown | Found Surveybot 17 Chip 4810 | -7/Scraptown | Visited Derelict Rescue Squad 4822 | -7/Scraptown | Found DRS Beacon 4842 | -7/Scraptown | Visited Modified Component R&D 4932 | -7/Scraptown | Delivered Scrap Shield to a Scientist 5060 | -7/Scraptown | Discovered new exit (range 5) 5095 | -7/Scraptown | Found Scrap Suit 5317 | -7/Scraptown | Visited Curators Association 5340 | -7/Scraptown | Visited Science Guys 5561 | -7/Scraptown | Visited The Evicted 5581 | -7/Scraptown | Visited CR-KLE's Repair Center 5603 | -7/Scraptown | CR-KLE repaired 2 parts 5628 | -7/Scraptown | Visited Cave Peace 5728 | -7/Scraptown | Discovered new exit (range 13) 5974 | -7/Scraptown | Heard Great Nut preacher, LISTEN AND RECITE! 6235 | -7/Scraptown | Visited LU-1G1's Boring Crew 6281 | -7/Scraptown | Met Optimus 6281 | -7/Scraptown | Accepted into 0bPrime 6365 | -7/Scraptown | Entered Factory 6365 | -5/Factory | Evolved 10 slots: Power x1, Propulsion x4, Utility x5 6425 | -5/Factory | Hacking Suite fried by hacking feedback 6450 | -5/Factory | Discovered new exit (range 84) 6633 | -5/Factory | Loaded intel: 8 recycling unit locations 6693 | -5/Factory | Build established: Derelict-Mutant 6761 | -5/Factory | Learned location of Protoforge (-3) 7292 | -5/Factory | Lost 8 parts (5n3u) 7361 | -5/Factory | Lost 3 parts (1p2n) 7387 | -5/Factory | Cargo convoy interrupted 7502 | -5/Factory | Discovered new exit (range 8) 7524 | -5/Factory | Core integrity fell below 50% 7548 | -5/Factory | Entered another Factory area 7548 | -4/Factory | Evolved 2 slots: Power x1, Utility x1 7552 | -4/Factory | Identified exit to DSF 7552 | -4/Factory | Entered DSF 7577 | -4/DSF | Lost 6 parts (1p4n1u) 7613 | -4/DSF | Additional patrols routed to DSF 7617 | -4/DSF | Discovered new exit (range 13) 7630 | -4/DSF | Entered Research 7630 | -3/Research | Evolved 2 slots: Propulsion x2 7768 | -3/Research | Spotted B-86 Titan 7885 | -3/Research | Loaded intel: 5 recycling unit locations 7958 | -3/Research | Discovered new exit (range 16) 7980 | -3/Research | Identified exit to Quarantine 7980 | -3/Research | Entered Quarantine 8001 | -3/Quarantine | Found Alien Artifact 8004 | -3/Quarantine | Found Alien Artifact 8005 | -3/Quarantine | Found Alien Artifact 8006 | -3/Quarantine | Found Alien Artifact 8011 | -3/Quarantine | Found Alien Artifact 8012 | -3/Quarantine | Found Alien Artifact 8016 | -3/Quarantine | Crushed by falling debris 8016 | -3/Quarantine | System corruption reached 10% 8018 | -3/Quarantine | Found Alien Artifact 8047 | -3/Quarantine | Lost 3 parts (1p1u1w) 8097 | -3/Quarantine | Identified Transdimensional Reconstructor (x2) 8097 | -3/Quarantine | Warped through subspace 8132 | -3/Quarantine | Found Alien Slashing Weapon 8132 | -3/Quarantine | Identified Sigix Broadsword 8165 | -3/Quarantine | Found Alien Artifact 8310 | -3/Quarantine | Found Alien Artifact 8319 | -3/Quarantine | Met incapacitated Sigix Warrior 8319 | -3/Quarantine | Lockdown squad dispatched 8320 | -3/Quarantine | Acquired the access code to the Sigix quarantine chamber 8320 | -3/Quarantine | Unlocked Sigix quarantine chamber 8325 | -3/Quarantine | Found Sigix Containment Pod 8334 | -3/Quarantine | Lost 4 parts (1p1n1u1w) 8362 | -3/Quarantine | Spotted Lightning 8434 | -3/Quarantine | Spotted Fortress 8449 | -3/Quarantine | Discovered new exit (range 6) 8449 | -3/Quarantine | Discovered new exit (range 6) 8450 | -3/Quarantine | Identified exit to Protoforge 8451 | -3/Quarantine | Identified exit to Section 7 8509 | -3/Quarantine | Entered Protoforge 8574 | -3/Protoforge | Spotted Hotshot 8771 | -3/Protoforge | Identified Dimensional Node Initializer 8771 | -3/Protoforge | Initialized slip node 8784 | -3/Protoforge | Spotted V024-i 8791 | -3/Protoforge | Superfortress began startup sequence 8791 | -3/Protoforge | Scanned by Researcher 8805 | -3/Protoforge | Spotted V595-o 8805 | -3/Protoforge | Spotted V454-k 8813 | -3/Protoforge | Found Prototype Device 8813 | -3/Protoforge | Identified Exp. Remote Shield 8815 | -3/Protoforge | Found Prototype Processor 8815 | -3/Protoforge | Identified Cep. Projectile Intercept Suite 8819 | -3/Protoforge | Found Prototype Device 8819 | -3/Protoforge | Identified Exp. EM Disruption Field 8821 | -3/Protoforge | Found Prototype Protection 8821 | -3/Protoforge | Identified Cep. Core Shell 8823 | -3/Protoforge | Found Prototype Protection 8823 | -3/Protoforge | Identified Cep. RG22 Armor 8827 | -3/Protoforge | Found Cep. RG22 Armor 8834 | -3/Protoforge | Spotted V392-h 8863 | -3/Protoforge | Spotted Decapitator 8863 | -3/Protoforge | Spotted Decapitator 8863 | -3/Protoforge | Spotted Decapitator 8871 | -3/Protoforge | Spotted V491-q 8871 | -3/Protoforge | Spotted V954-c 8873 | -3/Protoforge | Spotted Immortal 8902 | -3/Protoforge | Spotted AP7-3 8902 | -3/Protoforge | Spotted AP7-3 8938 | -3/Protoforge | Additional patrols dispatched to research labs 8965 | -3/Protoforge | Found Prototype Device 8965 | -3/Protoforge | Identified Cep. Navigation Harness 8974 | -3/Protoforge | Lost 3 parts (1p1n1u) 8996 | -3/Protoforge | Found Alien Artifact 8996 | -3/Protoforge | Identified Cep. Nanofilaments [Polyglass] 8996 | -3/Protoforge | Installed Cep. Nanofilaments [Polyglass], 3 resistances modified: KI -10%, TH +20%, EX -50% 9010 | -3/Protoforge | Warped through subspace to slip node 9013 | -3/Protoforge | Identified Subatomic Replicator 9013 | -3/Protoforge | Used Subatomic Replicator to replicate Impulse Thruster Array 9048 | -3/Protoforge | Spotted Hotshot 9048 | -3/Protoforge | Spotted Hotshot 9060 | -3/Protoforge | Identified Hpw. Transdimensional Reconstructor (x2) 9060 | -3/Protoforge | Warped through subspace to slip node 9106 | -3/Protoforge | Core integrity fell below 50% 9142 | -3/Protoforge | Discovered new exit (range 8) 9151 | -3/Protoforge | Spotted Immortal 9152 | -3/Protoforge | Spotted Immortal 9154 | -3/Protoforge | Identified exit to Research 9155 | -3/Protoforge | Entered Research 9155 | -2/Research | Evolved 2 slots: Propulsion x1, Weapon x1 9214 | -2/Research | Spotted B-90 Cyclops 9439 | -2/Research | Build established: Sprinter 9513 | -2/Research | Spotted B-90 Cyclops 9513 | -2/Research | Warped through subspace 9644 | -2/Research | Discovered new exit (range 13) 9653 | -2/Research | Identified exit to Testing 9654 | -2/Research | Entered Testing 9684 | -2/Testing | Lost 3 parts (2n1u) 9715 | -2/Testing | Rewired PX-RWVBYJ5KOW 9751 | -2/Testing | Found Prototype Launcher 9751 | -2/Testing | Identified Enh. Gamma Bomb Array 9839 | -2/Testing | Found Prototype Launcher 9839 | -2/Testing | Identified Ragnarok Missile Launcher 9858 | -2/Testing | Spotted Striker 9860 | -2/Testing | Found Prototype Processor 9860 | -2/Testing | Identified Spectral Analyzer 9861 | -2/Testing | Spotted Alpha 7 9878 | -2/Testing | Discovered new exit (range 17) 9888 | -2/Testing | Identified exit to Access 9895 | -2/Testing | Entered Access 9895 | -1/Access | Evolved 2 slots: Utility x2 10110 | -1/Access | Found Fusion Bomb Launcher 10160 | -1/Access | Found Prototype Device 10160 | -1/Access | Identified Thermal Barrier 10342 | -1/Access | Identified exit to Surface 10348 | -1/Access | Spotted B-99 Colossus 10452 | -1/Access | Lost 6 parts (2p3n1u) 10501 | -1/Access | Spotted B-99 Colossus 10515 | *** | Destroyed 0b10! Last Messages --------------- Sealed Barrier opened. 10499_ Drawn through space via semi-controlled quantum shift. 10499_ Penetrated by Slug. 10499_ O-32 Director: "IFF HANDSHAKE FAILED. SECURING TERMINAL." 10499_ Connecting with Terminal... 10499_ ALERT: Suspicious activity at Terminal A019. Dispatching Investigation squad. Cep. Navigation Harness integrity failing. 10502_ Slug penetrates Wall. 10502_ W-44 Eye distress signal jammed. 10503_ Drawn through space via semi-controlled quantum shift. 10508_ ALERT: Potential suspicious activity detected, Q-Series report to Access Zone 4C. 10511_ Lgt. Quantum Reactor destroyed. 10511_ Fabricator disabled. 10515_ The Access Shell folds into the floor. [Achievement: Payload Armed] Map ----- +----------------------------------------------------+ | ???????????# ????????????????????? | | ???????????# #??????????????????????# | | ???????????# #??????????????????????# | | ???????????# #??????????????????????# | | ???????????# #??????????????????????# """"" | | ???????????# #??????????????????????# """"" | | ???????????# #????????????????????### """"" | | ?########### #????????????????????# """"" | | ?# # #????????????????????# """"" | | ?# # #??????????????????????# | | ?# " # ######################## | | ?#""" + u | | ?# """ # | | ?# " # ####### ""############+#"#### | | ?# # #?????# ""#??????????# | | ?# # #?????# ""#??????????# | | ?########### #?????# T#??????????# | | ???????????# #?????# ""#??????????# | | ???????????# #?????# ""#??????????# | | ??????????## ##???## ""##?????????# | | ########### #???# #?????????# | | ! #???## ##?????????# ] | | #????# #??????????######"# | | +######## # #????# #??????????????# | | ????????# ######????# #??????????????# | | ????????# "###"###### @" #??????????????# | | ????????# # " # "" #??????????????# " | | ??????? # [ ### #??????????????# " | | ??????### # #?# #??????????????# | | ????????# # #?# #??????????????# | | ????????# # #?#""""""""""#??????????????# ] | | ????????# # #???????????????????????????# | | ????????# #! ""#???????????????????????????# | | ????????# # ""#???????????????????????????# | | ????????# # ""#???????????????????????????# | | ######### # T#???????????????????????????# | | # ""#???????????????????????????# | | + ""#???????????????????????????# | | ### ""#???????????????????????????### | | """#?# #?????????????????????????????## | | """#?# #??????????????????????????????? | | ^ ""#?#########??????????????????????????????? | | F""#????????????????????????????????????????? | | """#????????????????????????????????????????? | | #????????????????????????????????????????? | | #????????????????????????????????????????? | | ! #????????????????????????????????????????? | | ###### #????????????????????????????????????????? | | ?????# #????????????????????????????????????????? | | ?????# #????????????????????????????????????????? | +----------------------------------------------------+ Best States ------------- Heat Dissipation 71 Energy Generation 49 Energy Capacity 600 Matter Stores 300 Matter Capacity 300 Sight Range 24 Robot Scan Range 18 Terrain Scan Range 20 Terrain Scan Density 1410 Jamming Range 14 Power Amplification 30 Armor Coverage 800 Resistance: KI 20 Resistance: TH 25 Resistance: EM 25 Melee Speed Boost 40 Evasion (%) 73 Targeting Accuracy 8 Melee Accuracy 6 Target Analysis 6 Core Analysis 9 Recoil Reduction 2 Offensive Hacking 22 Item Schematics ----------------- None Robot Schematics ------------------ None Fabricated ------------ Nothing Repaired ---------- Nothing Alien Tech Used ----------------- Transdimensional Reconstructor Sigix Broadsword Dimensional Node Initializer Concept Nanofilaments [Polyglass] Subatomic Replicator High-powered Transdimensional Reconstructor Achievements -------------- Payload Armed Whoosh! Challenges ------------ None Game ------ Seed ThrowingBoltCrosscalibrator Manual? 0 Play Time 04:30:28 Cumulative 170.6 hours Start 2025.05.10 @ 22:55:52 End 2025.05.11 @ 16:29:55 Sessions 3 Manual Loads 0 Difficulty Rogue Special Mode None Game No. 94 Rogue 86 Adventurer 8 Explorer 0 Win Type 3 Total 4 Types 2/0/1/1/0/0/0/0/0/0 Lore% 71 Gallery% 68 Achievement% 58 Wizard Run 0 Options --------- Layout 2 ASCII 0 Keyboard 1 Movement Numpad Keybinds 1 Fullscreen 1 Font 48/Smallcaps Map View 50x44 Zoom Use 0% Tactical HUD 1 Map Filters NONE Filters NONE Steam 1 RUN: 94cefb7e-28b2-46b3-8f9c-e023bc631e14